fUSD/lending_fUSD_20240814
["ID","MTS","AMOUNT","RATE_DAILY","PERIOD"]
[334939869,1723662001413,-2110.0,0.00033428,30]
[334939870,1723662001441,-154.94,0.000335,31]
[334939871,1723662001468,-154.94,0.000335,31]
[334939872,1723662001495,-154.94,0.000335,31]
[334939873,1723662001518,-931.33,0.00033561,120]
[334939874,1723662001542,-768.0,0.00033674,30]
[334939875,1723662001566,-150.0,0.000338,30]
[334939876,1723662001590,-151.0,0.00033836,120]
[334939877,1723662001618,-2001.92516493,0.00033928,30]
[334939878,1723662001642,-2110.0,0.00033928,30]
[334939879,1723662001670,-50000.0,0.00034,34]
[334939880,1723662001694,-900.0,0.00034,35]
[334939881,1723662001719,-1000.0,0.00034,120]
[334939882,1723662001743,-2043.30676055,0.00034,30]
[334939883,1723662001768,-250.0,0.00034,120]
[334939884,1723662001793,-1797.09,0.00034,30]
[334939885,1723662001818,-151.0,0.00034192,120]
[334939886,1723662001844,-931.33,0.00034246,120]
[334939887,1723662001872,-40000.0,0.000344,120]
[334939888,1723662001897,-2110.0,0.00034428,30]
[334939889,1723662001925,-151.0,0.00034795,120]
[334939890,1723662001956,-885.601899,0.000348,30]
[334939891,1723662001981,-1238958.13549799,0.000348,30]
[334939892,1723662002005,-400.0,0.000349,120]
[334939893,1723662002032,-2110.0,0.00034928,30]
[334939894,1723662002057,-931.33,0.00034931,120]
[334939895,1723662002087,-50000.0,0.00035,35]
[334939896,1723662002115,-150.0,0.00035,30]
[334939897,1723662002138,-1184.0,0.00035,60]
[334939898,1723662002286,-413.0,0.00035,90]
[334939899,1723662002310,-900.0,0.00035,36]
[334939900,1723662002335,-300.0,0.00035,120]
[334939901,1723662002359,-322.83733028,0.00035,30]
[334939902,1723662002388,-1000.0,0.00035,120]
[334939903,1723662002414,-200.0,0.00035,120]
[334939904,1723662002439,-320328.40450159,0.00035,30]
[334939905,1723662007226,-2200000.0,0.00035,30]
[334939906,1723662014126,-1009477.92042771,0.00035,30]
[334939907,1723662014151,-23193.7636288,0.00035,120]
[334939908,1723662014178,-1180.802532,0.00035,30]
[334939909,1723662014202,-135514.5244938,0.00035,90]
[334939910,1723662014227,-155.521766,0.00035,30]
[334939911,1723662014251,-155.521766,0.00035,30]
[334939912,1723662014274,-155.521766,0.00035,30]
[334939913,1723662014298,-2000.0,0.00035,30]
[334939914,1723662014322,-200.0,0.00035,30]
[334939915,1723662014347,-6047.0,0.00035,120]
[334939916,1723662014375,-297562.52715574,0.00035,120]
[334939917,1723662014399,-23100.0,0.000354,120]
[334939918,1723662014423,-2001.92516493,0.00035428,30]
[334939919,1723662014448,-2110.0,0.00035428,30]
[334939920,1723662014474,-40000.0,0.000355,120]
[334939921,1723662014498,-1476.003166,0.000355,30]
[334939922,1723662014523,-151.0,0.00035589,120]
[334939923,1723662014547,-1771.203799,0.000356,30]
[334939924,1723662014571,-931.33,0.00035616,120]
[334939925,1723662014595,-244.55003939,0.00035616,60]
[334939926,1723662014626,-1771.203799,0.000357,30]
[334939927,1723662014651,-151.0,0.00035753,120]
[334939928,1723662014676,-2066.404432,0.000358,30]
[334939929,1723662014700,-29940.04827472,0.000358,60]
[334939930,1723662014724,-1771.203799,0.0003582,30]
[334939931,1723662014749,-1174.41,0.00035928,30]
[334939932,1723662014777,-50000.0,0.00036,36]
[334939933,1723662014802,-100000.0,0.00036,30]
[334939934,1723662014827,-900.0,0.00036,37]
[334939935,1723662014853,-2000.0,0.00036,120]
[334939936,1723662014886,-1000.0,0.00036,120]
[334939937,1723662014911,-166.8366279,0.00036,120]
[334939938,1723662014937,-1414.70673713,0.00036,120]
[334939939,1723662014962,-423.67004443,0.00036,120]
[334939940,1723662014986,-3245.0,0.00036114,54]
[334939941,1723662015010,-931.33,0.00036301,120]
[334939942,1723662015037,-672.72,0.00036552,30]
[334939943,1723662015062,-151.0,0.00036712,120]
[334939944,1723662015085,-2001.92516493,0.00036928,30]
[334939945,1723662015110,-931.33,0.00036986,120]
[334939946,1723662015138,-151.0,0.00036986,120]
[334939947,1723662015170,-50000.0,0.00037,37]
[334939948,1723662015195,-900.0,0.00037,38]
[334939949,1723662015218,-300.0,0.00037,120]
[334939950,1723662015241,-1197000.0,0.00037,30]
[334939951,1723662015265,-4281.8471338,0.00037035,40]
[334939952,1723662015287,-11620.99373893,0.00037035,40]
[334939953,1723662015310,-319.65530801,0.00037035,40]
[334939954,1723662015333,-251.3308519,0.00037035,40]
[334939955,1723662015356,-486.79638008,0.00037035,40]
[334939956,1723662015381,-1000.0,0.000372,30]
[334939957,1723662015405,-931.33,0.00037671,120]
[334939958,1723662015430,-151.0,0.00037671,120]
[334939959,1723662015454,-215.0,0.0003797,30]
[334939960,1723662015477,-265.18673392,0.00037999,120]
[334939961,1723662015504,-50000.0,0.00038,38]
[334939962,1723662015527,-85422.95635372,0.00038,30]
[334939963,1723662015549,-1307446.0,0.00038,30]
[334939964,1723662015572,-900.0,0.00038,39]
[334939965,1723662015595,-755.66748941,0.00038,120]
[334939966,1723662015618,-2000.0,0.00038,120]
[334939967,1723662015642,-1000.0,0.00038,120]
[334939968,1723662015665,-844.50512921,0.00038,30]
[334939969,1723662015688,-200.0,0.00038,120]
[334939970,1723662015712,-3058.4533083,0.00038,120]
[334939971,1723662015735,-1031.10364825,0.00038,120]
[334939972,1723662015759,-931.33,0.00038356,120]
[334939973,1723662015785,-151.0,0.00038384,120]
[334939974,1723662015808,-1000.0,0.00038388,30]
[334939975,1723662015831,-766.52610736,0.000384,33]
[334939976,1723662015855,-161.16495487,0.000384,33]
[334939977,1723662015880,-8824.79151583,0.000384,33]
[334939978,1723662015903,-157.63451605,0.000384,33]
[334939979,1723662015927,-151.81359266,0.000384,33]
[334939980,1723662015956,-2001.92516493,0.00038428,30]
[334939981,1723662015980,-717179.08348829,0.0003844,30]
[334939982,1723662016020,183.82,8.219e-05,2]
[334939983,1723662022261,-509.47,0.00038356,120]
[334939984,1723662022286,-391910.91651171,0.0003844,30]
[334939985,1723662022311,-1255.43817303,0.000385,120]
[334939986,1723662022337,-1000.0,0.00038547,30]
[334939987,1723662022362,-151.0,0.0003863,120]
[334939988,1723662022389,-1000.0,0.00038707,30]
[334939989,1723662022414,-1034080.01319206,0.000388,60]
[334939990,1723662022440,-916930.31332068,0.000388,60]
[334939991,1723662022463,-1000.0,0.00038866,30]
[334939992,1723662022487,-4659.68574563,0.0003888,90]
[334939993,1723662022510,-200604.43777279,0.000389,30]
[334939994,1723662022537,-50000.0,0.00039,39]
[334939995,1723662022560,-160.0,0.00039,30]
[334939996,1723662022584,-900.0,0.00039,40]
[334939997,1723662022608,-500.0,0.00039,120]
[334939998,1723662022634,-1304.0,0.00039,120]
[334939999,1723662022657,-300.0,0.00039,120]
[334940000,1723662022680,-574.25032884,0.00039,120]
[334940001,1723662022704,-1524.20079077,0.00039,120]
[334940002,1723662022728,-100000.0,0.00039,30]
[334940003,1723662022752,-100000.0,0.00039,30]
[334940004,1723662022775,-100000.0,0.00039,30]
[334940005,1723662022799,-59329.0,0.00039,30]
[334940006,1723662022823,-1458.59118328,0.00039,30]
[334940007,1723662022846,-10000.0,0.00039,120]
[334940008,1723662022871,-10000.0,0.00039,120]
[334940009,1723662022896,-10000.0,0.00039,120]
[334940010,1723662022922,-10000.0,0.00039,120]
[334940011,1723662022950,-311.55939895,0.00039,120]
[334940012,1723662022973,-1000.0,0.00039025,30]
[334940013,1723662022999,-931.33,0.00039041,120]
[334940014,1723662023024,-1000.0,0.00039184,30]
[334940015,1723662023047,-14583.59,0.0003927,30]
[334940016,1723662023072,-1000.0,0.00039344,30]
[334940017,1723662023096,-569.58287203,0.000394,30]
[334940018,1723662023120,-215.0,0.0003949,30]
[334940019,1723662023148,-1000.0,0.00039503,30]
[334940020,1723662023174,-3540.0,0.00039529,74]
[334940021,1723662023200,-151.0,0.00039589,120]
[334940022,1723662023224,-1000.0,0.00039662,30]
[334940023,1723662023249,-2548.40958076,0.000397,90]
[334940024,1723662023275,-672.72,0.00039713,120]
[334940025,1723662023300,-931.33,0.00039726,120]
[334940026,1723662023325,-151.0,0.00039781,120]
[334940027,1723662023349,-424.9982892,0.000398,90]
[334940028,1723662023373,-654.21550921,0.000398,120]
[334940029,1723662023400,-1000.0,0.00039822,30]
[334940030,1723662023426,-406.0555657,0.00039886,90]
[334940031,1723662023451,-1952.15390571,0.000399,120]
[334940032,1723662023476,-2149.18322136,0.000399,30]
[334940033,1723662023501,-2001.92516493,0.00039928,30]
[334940034,1723662023526,-1000.0,0.00039981,30]
[334940035,1723662023551,-410.0,0.00039986,90]
[334940036,1723662023577,-250.0,0.00039999,30]
[334940037,1723662023605,-50000.0,0.0004,30]
[334940038,1723662023637,-50000.0,0.0004,40]
[334940039,1723662023662,-1119.0,0.0004,60]
[334940040,1723662023686,-477.12749073,0.0004,30]
[334940041,1723662023710,-1483.81775044,0.0004,30]
[334940042,1723662023733,-2476.60024953,0.0004,30]
[334940043,1723662023757,-701.45900195,0.0004,30]
[334940044,1723662023782,-150.0,0.0004,75]
[334940045,1723662023806,-1476.0,0.0004,80]
[334940046,1723662023829,-2000.03,0.0004,30]
[334940047,1723662023853,-380.9297253,0.0004,31]
[334940048,1723662023879,-900.0,0.0004,41]
[334940049,1723662023903,-200.0,0.0004,30]
[334940050,1723662023926,-343.37261982,0.0004,30]
[334940051,1723662023956,-250000.0,0.0004,30]
[334940052,1723662023981,-1050.33010318,0.0004,32]
[334940053,1723662024005,-752.0,0.0004,60]
[334940054,1723662024030,-11194.72471119,0.0004,30]
[334940055,1723662024054,-1000.02693203,0.0004,30]
[334940056,1723662024079,-417.83812551,0.0004,120]
[334940057,1723662024102,-1547.15935083,0.0004,120]
[334940058,1723662024127,-1167.51736345,0.0004,120]
[334940059,1723662024151,-2000.0,0.0004,120]
[334940060,1723662024175,-318.03,0.0004,120]
[334940061,1723662024200,-196.22316581,0.0004,120]
[334940062,1723662024223,-300.0,0.0004,120]
[334940063,1723662024246,-2000.0,0.0004,80]
[334940064,1723662024269,-2000.0,0.0004,80]
[334940065,1723662024292,-2000.0,0.0004,80]
[334940066,1723662024315,-2000.0,0.0004,80]
[334940067,1723662024338,-2000.0,0.0004,80]
[334940068,1723662024362,-771.0,0.0004,60]
[334940069,1723662024389,-1283.8831025,0.0004,30]
[334940070,1723662024413,-612.29945108,0.0004,30]
[334940071,1723662024436,-1584.74143136,0.0004,120]
[334940072,1723662024460,-559.86857288,0.0004,120]
[334940073,1723662024486,-351.28879817,0.0004,120]
[334940074,1723662024511,-157.0951282,0.0004,30]
[334940075,1723662024536,-234.58240213,0.0004,120]
[334940076,1723662024698,-1352.05610834,0.0004,120]
[334940077,1723662024724,-357.0,0.0004,60]
[334940078,1723662024748,-297.2,0.0004,120]
[334940079,1723662024772,-735.0,0.0004,120]
[334940080,1723662024796,-20128.0,0.0004,30]
[334940081,1723662024820,-578.8689768,0.0004,120]
[334940082,1723662024844,-1000000.0,0.0004,60]
[334940083,1723662024868,-627.22980414,0.0004,120]
[334940084,1723662024896,-10335.7,0.0004,32]
[334940085,1723662024920,-7353.52,0.0004,30]
[334940086,1723662024949,-434.85891513,0.0004,120]
[334940087,1723662024972,-743.0,0.0004,60]
[334940088,1723662024996,-575.37905073,0.0004,30]
[334940089,1723662025022,-163.75183957,0.0004,120]
[334940090,1723662025046,-1137.77252709,0.0004,30]
[334940091,1723662025072,-11333.54222408,0.0004,120]
[334940092,1723662025097,-770.0,0.0004,30]
[334940093,1723662025122,-33700.0,0.0004,30]
[334940094,1723662025148,-45948.73455932,0.0004,30]
[334940095,1723662025174,-164.86333913,0.0004,120]
[334940096,1723662025197,-2137.15571187,0.0004,120]
[334940097,1723662025220,-493.32842179,0.0004,120]
[334940098,1723662025244,-3058.4533083,0.0004,120]
[334940099,1723662025268,-1031.10364825,0.0004,120]
[334940100,1723662025291,-15354.96,0.0004,30]
[334940101,1723662025314,-2874.39,0.0004,120]
[334940102,1723662025338,-5658.07,0.0004,120]
[334940103,1723662025362,-361.62,0.0004,120]
[334940104,1723662025388,-823.71,0.0004,120]
[334940105,1723662025413,-848.17,0.0004,120]
[334940106,1723662025436,-355.7,0.0004,120]
[334940107,1723662025463,-805.21,0.0004,120]
[334940108,1723662025487,-362.05,0.0004,120]
[334940109,1723662025510,-592.21183544,0.0004001,30]
[334940110,1723662025533,-214.0,0.00040019,120]
[334940111,1723662025557,-2323.59189058,0.0004003,30]
[334940112,1723662025582,-1231.62562708,0.00040073,90]
[334940113,1723662025607,-250000.0,0.000401,40]
[334940114,1723662025636,-250000.0,0.000401,50]
[334940115,1723662025661,-1000.0,0.0004014,30]
[334940116,1723662025686,-77525.85620963,0.000402,50]
[334940117,1723662029251,-172474.14379037,0.000402,50]
[334940118,1723662029275,-50000.0,0.00040233,120]
[334940119,1723662029300,-1000.0,0.00040299,30]
[334940120,1723662029324,-250000.0,0.000403,50]
[334940121,1723662029348,-250000.0,0.000403,30]
[334940122,1723662029372,-205.23873227,0.000403,120]
[334940123,1723662029405,-250000.0,0.000404,30]
[334940124,1723662029430,-250000.0,0.000404,40]
[334940125,1723662029454,-3483.6057542,0.000404,120]
[334940126,1723662029478,-931.33,0.0004041,120]
[334940127,1723662029503,-1000.0,0.00040459,30]
[334940128,1723662029528,-250000.0,0.000405,50]
[334940129,1723662029553,-1000000.0,0.000405,60]
[334940130,1723662029579,-151.0,0.00040548,120]
[334940131,1723662029606,-250000.0,0.000406,30]
[334940132,1723662029632,-250000.0,0.000406,40]
[334940133,1723662029657,-1000.0,0.00040618,30]
[334940134,1723662029681,-250000.0,0.000407,30]
[334940135,1723662029705,-150000.0,0.000407,60]
[334940136,1723662029730,-1000.0,0.00040777,30]
[334940137,1723662029754,-130000.0,0.000409,30]
[334940138,1723662029936,-609.38788068,0.000409,120]
[334940139,1723662029965,-1000.0,0.00040937,30]
[334940140,1723662029990,-1000.0,0.00040999,120]
[334940141,1723662030021,-50000.0,0.00041,31]
[334940142,1723662030052,-50000.0,0.00041,41]
[334940143,1723662030079,-488.56278678,0.00041,120]
[334940144,1723662030105,-1000000.0,0.00041,60]
[334940145,1723662030132,-585656.7310557,0.00041,30]
[334940149,1723662034353,-1437.67,0.000341,30]
[334940150,1723662034389,-1695810.40002252,0.00041,30]
[334940151,1723662034413,-500.0,0.00041,120]
[334940152,1723662034438,-2169.2938788,0.00041,120]
[334940153,1723662034464,-668.33650693,0.00041,120]
[334940154,1723662034489,-313.81,0.00041,120]
[334940155,1723662034514,-5000.0,0.00041,120]
[334940156,1723662034539,-1635.15520168,0.00041,120]
[334940157,1723662034564,-3000.0,0.00041,120]
[334940158,1723662034589,-150.0,0.00041,30]
[334940159,1723662034614,-215.0,0.0004101,30]
[334940160,1723662034638,-400.19057366,0.00041044,120]
[334940161,1723662034661,-278606.21499894,0.00041078,120]
[334940162,1723662034686,-931.33,0.00041095,120]
[334940163,1723662034709,-475.70941999,0.00041095,120]
[334940164,1723662034733,-515.33687929,0.00041095,30]
[334940165,1723662034758,-876.54,0.00041096,30]
[334940166,1723662047339,-3200000.0,0.00030712,60]
[334940167,1723662052178,-3200000.0,0.00030712,60]
[334940168,1723662056864,150.1,0.00035,30]
[334940169,1723662060641,-3200000.0,0.00030712,60]
[334940172,1723662062895,6427.64971482,0.00035,30]
[334940173,1723662067311,548.0,0.00030613,30]
[334940174,1723662068685,702.0,0.00033674,30]
[334940175,1723662069258,-6200000.0,0.00030712,60]
[334940176,1723662074099,510.15,9.9e-05,2]
[334940177,1723662075118,-6200000.0,0.00030712,60]
[334940178,1723662082252,3531.33030988,0.0004,30]
[334940179,1723662083710,548.44632541,0.0003,30]
[334940180,1723662084065,-6200000.0,0.00030704,60]
[334940181,1723662085530,1000.0,0.00041095,120]
[334940182,1723662108569,-6200000.0,0.00030704,60]
[334940183,1723662112882,-6200000.0,0.00030704,60]
[334940184,1723662121687,164.26,7.914e-05,2]
[334940185,1723662229444,397.01974504,0.00025276,120]
[334940186,1723662229762,397.01974504,0.00026678,120]
[334940189,1723662349332,300.00000001,0.00025276,120]
[334940190,1723662429820,15483.10746637,9.899e-05,2]
[334940197,1723662573428,-189.72,9.905e-05,2]
[334940198,1723662573474,-27.66464721,9.911e-05,2]
[334940206,1723662631789,-141.46535279,9.911e-05,2]
[334940207,1723662631799,-250.0,9.925e-05,2]
[334940208,1723662631808,-591.88,9.925e-05,2]
[334940209,1723662631817,-150.0,9.999e-05,2]
[334940210,1723662631827,-186.25460476,9.999e-05,2]
[334940211,1723662631836,-550.0,0.0001,2]
[334940212,1723662631845,-500.0,0.0001,2]
[334940213,1723662631854,-500.0,0.0001,2]
[334940214,1723662631863,-500.0,0.0001,2]
[334940215,1723662631872,-500.0,0.0001,2]
[334940216,1723662631884,-500.0,0.0001,2]
[334940217,1723662631893,-500.0,0.0001,2]
[334940218,1723662631902,-500.0,0.0001,2]
[334940219,1723662632071,-500.0,0.0001,2]
[334940220,1723662632082,-500.0,0.0001,2]
[334940221,1723662632091,-500.0,0.0001,2]
[334940222,1723662632101,-500.0,0.0001,2]
[334940223,1723662632110,-500.0,0.0001,2]
[334940224,1723662632120,-500.0,0.0001,2]
[334940225,1723662632133,-500.0,0.0001,2]
[334940226,1723662632142,-500.0,0.0001,2]
[334940227,1723662632152,-500.0,0.0001,2]
[334940228,1723662632161,-500.0,0.0001,2]
[334940229,1723662632170,-358.17845175,0.0001,2]
[334940231,1723662632182,-141.82154825,0.0001,2]
[334940233,1723662632191,-500.0,0.0001,2]
[334940235,1723662632200,-500.0,0.0001,2]
[334940236,1723662632211,-500.0,0.0001,2]
[334940237,1723662632220,-500.0,0.0001,2]
[334940238,1723662632229,-294.5416692,0.0001,2]
[334940239,1723662632252,-205.4583308,0.0001,2]
[334940240,1723662632261,-500.0,0.0001,2]
[334940241,1723662632271,-431.93549313,0.0001,2]
[334940242,1723662632282,-68.06450687,0.0001,2]
[334940243,1723662632292,-463.10825495,0.0001,2]
[334940244,1723662632303,-36.89174505,0.0001,2]
[334940245,1723662632312,-500.0,0.0001,2]
[334940246,1723662632321,-500.0,0.0001,2]
[334940247,1723662632330,-500.0,0.0001,2]
[334940248,1723662632339,-500.0,0.0001,2]
[334940249,1723662632348,-500.0,0.0001,2]
[334940250,1723662632358,-500.0,0.0001,2]
[334940251,1723662632367,-500.0,0.0001,2]
[334940252,1723662632377,-500.0,0.0001,2]
[334940253,1723662632387,-500.0,0.0001,2]
[334940254,1723662632396,-500.0,0.0001,2]
[334940255,1723662632406,-500.0,0.0001,2]
[334940256,1723662632415,-500.0,0.0001,2]
[334940257,1723662632423,-500.0,0.0001,2]
[334940258,1723662632433,-500.0,0.0001,2]
[334940259,1723662632442,-500.0,0.0001,2]
[334940260,1723662632451,-500.0,0.0001,2]
[334940261,1723662632461,-500.0,0.0001,2]
[334940262,1723662632471,-394.77,0.0001,2]
[334940263,1723662632480,-500.0,0.0001,2]
[334940264,1723662632489,-500.0,0.0001,2]
[334940265,1723662632498,-575.65,0.0001,2]
[334940266,1723662632507,-186.25460476,0.0001,2]
[334940267,1723662632516,-813.15301338,0.00010009,2]
[334940268,1723662632527,-4590.6412848,0.00010009,2]
[334940269,1723662632537,-3540.7738935,0.00010009,2]
[334940270,1723662632548,-3459.2261065,0.00010009,2]
[334940271,1723662632558,-2502.58566001,0.00010505,2]
[334940272,1723662632567,-3875.44196721,0.00010566,2]
[334940273,1723662632577,-2097.97866267,0.00010567,2]
[334940274,1723662632588,-343.36626588,0.00010567,2]
[334940275,1723662632599,-1902.65507145,0.00010567,2]
[334940276,1723662632609,-560.95490643,0.0001068,2]
[334940277,1723662632618,-1860.7009197,0.00010712,2]
[334940278,1723662632629,-793.0,0.00010712,2]
[334940279,1723662632639,-150.99,0.00010712,2]
[334940280,1723662632648,-225.79732761,0.00010721,2]
[334940281,1723662632659,-274.19267239,0.00010721,2]
[334940282,1723662632668,-1169.49277911,0.00010721,2]
[334940283,1723662632680,-462.53216332,0.00010721,2]
[334940284,1723662632691,-552.32636501,0.00010721,2]
[334940285,1723662632703,-2849.68869256,0.00010721,2]
[334940286,1723662632713,-1298.23330788,0.00010721,2]
[334940287,1723662632721,-1257.0,0.00010722,2]
[334940288,1723662632730,-622.0,0.00010722,2]
[334940289,1723662632740,-1137.0,0.00010722,2]
[334940290,1723662632749,-810.0,0.00010722,2]
[334940291,1723662632758,-446.0,0.00010722,2]
[334940292,1723662632767,-556.0,0.00010722,2]
[334940293,1723662632777,-560.95490644,0.000108,2]
[334940294,1723662632786,-649.52111484,0.00010852,2]
[334940295,1723662632795,-10534.15307555,0.00010852,2]
[334940296,1723662632805,-243.25458866,0.00010852,2]
[334940297,1723662632814,-155.0,0.00010859,2]
[334940298,1723662632823,-600.74422133,0.00010862,2]
[334940299,1723662632833,-241.97615057,0.00010865,2]
[334940300,1723662632843,-150.8736,0.0001089,2]
[334940301,1723662632853,-551.0,0.0001089,2]
[334940302,1723662632862,-1895.0,0.0001089,2]
[334940303,1723662632871,-3292.0,0.0001089,2]
[334940304,1723662632880,-1178.0,0.0001089,2]
[334940305,1723662632889,-150.0,0.0001089,2]
[334940306,1723662632898,-764.0,0.0001089,2]
[334940307,1723662632907,-289.0,0.00010891,2]
[334940308,1723662632916,-920.731,0.00010891,2]
[334940309,1723662632926,-5843.0,0.00010891,2]
[334940310,1723662632935,-218.598,0.00010891,2]
[334940311,1723662632944,-5133.0,0.00010891,2]
[334940312,1723662632954,-21761.0,0.00010891,2]
[334940313,1723662632963,-1139.1217656,0.00010898,2]
[334940314,1723662632973,-485.18668102,0.00010898,2]
[334940315,1723662632982,-1263.1381,0.00010899,2]
[334940316,1723662632991,-8482.24260843,0.00010899,2]
[334940317,1723662633001,-75269.6727,0.000109,2]
[334940318,1723662633009,-1642.8558,0.000109,2]
[334940319,1723662633018,-1200.781944,0.000109,2]
[334940320,1723662633027,-565.1718,0.000109,2]
[334940321,1723662633037,-160.48000493,0.000109,2]
[334940322,1723662633046,-168.18924987,0.000109,2]
[334940323,1723662633056,-1000.0,0.000109,2]
[334940324,1723662633065,-164.37927092,0.00010951,2]
[334940325,1723662633075,-203.41395605,0.00010951,2]
[334940326,1723662633084,-1739.57017204,0.00010952,2]
[334940327,1723662633094,-687.02501385,0.00010952,2]
[334940328,1723662633104,-155.0,0.00010953,2]
[334940329,1723662633113,-155.70062256,0.00010953,2]
[334940330,1723662633123,-164.40260801,0.00010953,2]
[334940331,1723662633135,-158.39644401,0.00010953,2]
[334940332,1723662633145,-270.58164358,0.00010953,2]
[334940333,1723662633154,-155.0,0.00010953,2]
[334940334,1723662633164,-155.0,0.00010953,2]
[334940335,1723662633174,-159.60847032,0.00010953,2]
[334940336,1723662633184,-155.13684037,0.00010953,2]
[334940337,1723662633193,-155.0,0.00010953,2]
[334940338,1723662633203,-367.87511774,0.00010953,2]
[334940339,1723662633213,-380.32741541,0.00010953,2]
[334940340,1723662633222,-365.80180037,0.00010953,2]
[334940341,1723662633231,-155.0,0.00010954,2]
[334940342,1723662633239,-2841.12816254,0.00010954,2]
[334940343,1723662633249,-155.0,0.00010955,2]
[334940344,1723662633258,-215.23279799,0.00010955,2]
[334940345,1723662633268,-155.0,0.00010955,2]
[334940346,1723662633277,-175.67867199,0.00010955,2]
[334940347,1723662633287,-155.0,0.00010955,2]
[334940348,1723662633297,-155.0,0.00010955,2]
[334940349,1723662633306,-155.0,0.00010955,2]
[334940350,1723662633317,-432.47832469,0.00010955,2]
[334940351,1723662633326,-236.34424982,0.00010955,2]
[334940352,1723662633336,-255.19609183,0.00010955,2]
[334940353,1723662633346,-155.0,0.00010955,2]
[334940354,1723662633355,-892.72350459,0.00010956,2]
[334940355,1723662633365,-493.59808335,0.00010956,2]
[334940356,1723662633375,-155.0,0.00010957,2]
[334940357,1723662633386,-155.0,0.00010957,2]
[334940358,1723662633395,-357.45302385,0.00010957,2]
[334940359,1723662633405,-155.0,0.00010957,2]
[334940360,1723662633415,-155.18840047,0.00010958,2]
[334940361,1723662633424,-155.0,0.00010958,2]
[334940362,1723662633433,-155.0,0.00010958,2]
[334940363,1723662633443,-167.58719206,0.00010958,2]
[334940364,1723662633453,-3937.46359227,0.00010959,2]
[334940365,1723662633462,-218.91005949,0.0001096,2]
[334940366,1723662633471,-328.2488375,0.0001096,2]
[334940367,1723662633480,-155.0,0.00010961,2]
[334940368,1723662633489,-155.0,0.00010962,2]
[334940369,1723662633499,-440.08291615,0.00010979,2]
[334940370,1723662633508,-212.24302171,0.0001099,2]
[334940371,1723662633517,-347.69615481,0.0001099,2]
[334940372,1723662633526,-297.48958849,0.00010991,2]
[334940373,1723662633535,-547.93978231,0.00010991,2]
[334940374,1723662633545,-197.1386879,0.00010992,2]
[334940375,1723662633554,-264.49036255,0.00010993,2]
[334940376,1723662633563,-166.76578094,0.00010993,2]
[334940377,1723662633573,-2293.60204539,0.00010997,2]
[334940378,1723662633582,-456.93324515,0.00010999,2]
[334940379,1723662633592,-606.0,0.00011,2]
[334940380,1723662633602,-108120.24514307,0.00011,2]
[334940381,1723662633611,-1004.442708,0.00011,2]
[334940382,1723662633620,-5754.94164994,0.00011,2]
[334940383,1723662633640,-883.54995,0.00011,2]
[334940384,1723662633651,-846.47,0.00011,2]
[334940385,1723662633662,-350.2299999,0.00011,2]
[334940390,1723662638383,-155.0,0.00010951,2]
[334940391,1723662638392,-155.0,0.00010955,2]
[334940392,1723662638402,-155.0,0.00010957,2]
[334940393,1723662638411,-20911.45158423,0.00011,2]
[334940403,1723662639871,-184.43,0.00010052,2]
[334940405,1723662639882,-215.64483383,0.00011,2]